Cogmind - Beta 16.1 @@@ ROGUE MODE // 2026.05.01 @ 19:14:33 Player: JuustuToug Result: Escaped! Performance ------------- Evolutions (9) 4500 Regions Visited (27) 5400 Robots Destroyed (548) 2740 Value Destroyed (28969) 28969 Prototype IDs (58) 1160 Alien Tech Used (0) 0 Bonus (20281) 20281 TOTAL SCORE: 63050 Bonus ------- High Alert Combat Kills 6157 Follower Combat Kills 2760 Hunted by Unchained 500 Entered Garrisons 1200 Used RIF Installer 3500 Network Hubs Disabled 400 Built Enhanced Grunts 300 A7 Reached Mainframe 300 Met R17 at Cetus 500 Met R17 at Research 2000 Win 3000 Friendly Fire -336 Cogmind --------- Core Integrity 228/1600 Matter 270/300 Energy 449/700 System Corruption 81% Temperature Cool (0) Movement Core (50) Location To Epsilon Eridani Parts ------- > --- POWER (3) -------- (None) > --- PROPULSION (6) --- (None) > --- UTILITY (13) ----- Experimental Energy Well Experimental Optical Array Graphene Brace Relay Coupler [Sentry] (4) > --- WEAPON (3) ------- (None) > --- INVENTORY (5) ---- High-capacity Storage Unit Long-range Tractor Beam Cooled Proton Cannon Potential Cannon Peak State ------------ > --- POWER ------------ Micro Antimatter Reactor Micro Antimatter Reactor Light Quantum Reactor > --- PROPULSION ------- Improved Heavy Siege Treads Improved Heavy Siege Treads Biometal Heavy Treads > --- UTILITY ---------- Advanced Power Amplifier Advanced Heat Sink High-capacity Storage Unit Experimental Energy Well Experimental Optical Array Quantum Capacitor Graphene Brace AEGIS Remote Shield Advanced Hacking Suite Relay Coupler [NC] Relay Coupler [Sentry] Relay Coupler [Hunter] > --- WEAPON ----------- Plasma Rifle Potential Cannon > --- INVENTORY -------- Advanced Heat Sink Advanced Heat Sink Matter Compressor Structural Scanner Advanced Sensor Array Quantum Capacitor Quantum Capacitor Heavy Armor Plating Advanced Force Field Long-range Tractor Beam Cooled Proton Cannon Compact Tesla Bomb Launcher Fusion Bomb Launcher Advanced Remote Datajack [Rating: 187] Favorites ----------- Power Light Antimatter Reactor Engine Cooled Ion Engine Power Core Neutrino Core Reactor Light Antimatter Reactor Propulsion Light Treads Treads Light Treads Leg Aluminum Leg Utility High-capacity Storage Unit Device Seismic Detector Storage High-capacity Storage Unit Processor Core Analyzer Hackware Relay Coupler [Sentry] Protection Improved Medium Armor Plating Weapon Heavy Particle Cannon Energy Gun Advanced Variable Charge Gun Energy Cannon Heavy Particle Cannon Ballistic Gun Improved Assault Rifle Ballistic Cannon Light Antimatter Cannon Launcher Compact Tesla Bomb Launcher Special Weapon Improved Remote Datajack Slashing Weapon Katana Piercing Weapon Enhanced Force Lance Special Melee Weapon Datajack Build | -11 -10 -10 -9 -9 -8 -8 -8 -8 -7 -7 -7 -7 -6 -6 -6 -6 -6 -5 -5 -4 -4 -4 -4 -3 -3 -2 -1 ------- Run | Yrd Mat Min Mat Min Mat Gar Mat Gar Fac Gar Fac Gar Fac Ext Cet Arc Hub Fac Gar Fac Was Fac Gar Res Tes Res Acc Slots Evolved 18 | . . . 2 . 2 . . . 2 . . . 2 . . . . 2 . 2 . . . 2 . 2 2 Power 2 | . . . . . . . . . . . . . . . . . . 1 . 1 . . . . . . . Propulsion 4 | . . . 1 . 1 . . . . . . . . . . . . . . . . . . . . 2 . Utility 11 | . . . 1 . . . . . 2 . . . 2 . . . . 1 . 1 . . . 2 . . 2 Weapon 1 | . . . . . 1 . . . . . . . . . . . . . . . . . . . . . . Parts Attached 363 | 7 8 1 17 3 8 14 20 15 5 11 4 15 18 20 13 6 1 23 30 6 1 2 30 16 22 16 31 Power 58 | 1 1 . 3 . . 1 1 2 . . . 3 2 1 . 1 . 6 7 3 . . 6 3 7 2 8 Engine 22 | 1 1 . 3 . . 1 1 1 . . . 2 1 1 . . . 6 3 . . . . . . 1 . Core 14 | . . . . . . . . . . . . 1 1 . . 1 . . 4 3 . . 3 . . 1 . Reactor 22 | . . . . . . . . 1 . . . . . . . . . . . . . . 3 3 7 . 8 Propulsion 75 | 2 2 . 6 1 3 8 9 4 1 3 . 4 7 4 3 . . 1 5 . . . 1 2 3 3 3 Treads 74 | 2 2 . 6 1 3 7 9 4 1 3 . 4 7 4 3 . . 1 5 . . . 1 2 3 3 3 Leg 1 | . . . . . . 1 . . . . . . . . . . . . . . . . . . . . . Wheel . | . . . . . . . . . . . . . . . . . . . . . . . . . . . . Hover . | . . . . . . . . . . . . . . . . . . . . . . . . . . . . Flight . | . . . . . . . . . . . . . . . . . . . . . . . . . . . . Utility 136 | 2 3 . 2 . 2 . 7 3 3 5 2 6 4 8 4 5 . 12 9 2 1 2 14 8 8 6 18 Device 68 | 1 2 . . . 2 . 3 . . 3 . 2 1 2 2 4 . 8 5 . . 1 7 4 4 5 12 Storage 8 | 1 1 . 1 . . . . . . . . . . 1 . . . . 2 . . . . . 2 . . Processor 7 | . . . . . . . . . 1 . . . . . . . . 1 . . . 1 1 1 . 1 1 Hackware 32 | . . . 1 . . . 2 3 1 . 2 2 1 2 . 1 . 3 2 2 1 . 4 2 1 . 2 Protection 21 | . . . . . . . 2 . 1 2 . 2 2 3 2 . . . . . . . 2 1 1 . 3 Artifact . | . . . . . . . . . . . . . . . . . . . . . . . . . . . . Weapon 94 | 2 2 1 6 2 3 5 3 6 1 3 2 2 5 7 6 . 1 4 9 1 . . 9 3 4 5 2 Energy Gun 34 | 1 2 . . . 1 . 3 2 . 1 . . 2 2 4 . 1 2 2 1 . . 4 1 2 2 1 Energy Cannon 11 | . . . 1 1 2 . . 1 . 1 . 1 . 1 . . . . . . . . . 1 2 . . Ballistic Gun 31 | 1 . . 4 . . 3 . 1 1 1 . 1 2 3 2 . . 1 6 . . . 4 1 . . . Ballistic Cannon 2 | . . . . . . . . . . . . . . 1 . . . . . . . . . . . . 1 Launcher 8 | . . 1 1 1 . 1 . . . . 1 . . . . . . . . . . . 1 . . 2 . Special Weapon 5 | . . . . . . . . 1 . . 1 . 1 . . . . 1 . . . . . . . 1 . Impact Weapon . | . . . . . . . . . . . . . . . . . . . . . . . . . . . . Slashing Weapon 1 | . . . . . . . . 1 . . . . . . . . . . . . . . . . . . . Piercing Weapon 1 | . . . . . . . . . . . . . . . . . . . 1 . . . . . . . . Special Melee Weapon 1 | . . . . . . 1 . . . . . . . . . . . . . . . . . . . . . Unidentified Prototypes 25 | . . . 3 . 1 . 1 . . . 1 . . . 4 . 1 . 1 . . . . 2 7 1 3 Corrupted Parts 8 | . . . . . . . . . . . . . . . 5 . . . . . . . . . . . 3 System Corruption 60 | . . . . . . . . . . . . . . . 32 . . . . . . . . . . . 28 Parts Lost 102 | . 2 . 1 1 . 9 . 1 . 9 . 5 5 1 . . . 16 5 1 . . 6 4 3 6 27 Power 27 | . 1 . . . . 1 . 1 . 1 . 1 1 . . . . 4 2 . . . 3 2 2 2 6 Propulsion 21 | . 1 . 1 1 . 5 . . . 4 . 1 1 . . . . 2 . . . . . 1 . . 4 Utility 33 | . . . . . . . . . . 2 . 2 2 1 . . . 5 2 1 . . 3 1 . 2 12 Weapon 21 | . . . . . . 3 . . . 2 . 1 1 . . . . 5 1 . . . . . 1 2 5 Highest Loss Streak 11 | . 1 . 1 1 . 5 . 1 . 9 . 1 3 1 . . . 9 2 1 . . 5 1 2 4 11 To Critical Strikes 1 | . . . . . . . . . . . . . . . . . . . . . . . . . 1 . . Average Backups 18 | . 12 18 19 19 19 18 19 19 19 19 19 18 18 19 19 18 18 17 18 17 18 18 17 18 17 17 15 Power . | . 1 1 1 1 1 . . . 1 . . . . 1 1 1 1 . . . 1 1 . . . . . Propulsion 2 | . 1 1 3 4 2 1 2 3 4 3 2 2 3 5 3 2 2 1 1 2 2 2 2 1 2 1 . Utility 7 | . 2 5 4 5 6 7 7 6 5 8 9 7 5 7 7 8 8 8 10 8 9 9 8 8 7 9 8 Weapon 6 | . 7 10 9 9 8 6 7 7 7 6 7 7 7 5 6 6 6 5 4 6 5 6 5 7 5 5 4 Tool/Special . | . . . . . . . . . . . . . . . . . . . . . . . . . . . . Unused Backups 118 | . 4 . 19 2 2 5 8 7 1 4 5 5 5 5 8 . . 1 11 3 . . 3 5 7 1 7 Power 10 | . 2 . 1 . 1 . . . 1 . . . 2 1 . . . . . . . . . . . 1 1 Propulsion 25 | . . . 3 . . . 2 . . 1 4 . 1 3 3 . . . . 1 . . 1 1 4 . 1 Utility 36 | . 1 . . 1 1 3 2 4 . 3 1 3 1 1 1 . . . 7 . . . . 3 1 . 3 Weapon 45 | . 1 . 15 1 . 2 4 2 . . . 2 1 . 4 . . 1 4 2 . . 2 1 2 . 1 Tool/Special 2 | . . . . . . . . 1 . . . . . . . . . . . . . . . . . . 1 Average Slot Usage (%) 93 | . 98 100 99 100 99 99 99 100 96 99 100 99 99 98 92 85 86 85 87 86 89 89 88 89 89 85 75 Engine 5 | . 13 14 11 11 9 9 9 7 7 7 7 4 3 6 6 . . 8 7 . . . . . . . . Core 1 | . . . . . . . . . . . . 2 2 . . 5 6 1 3 13 15 15 7 4 . . . Reactor 2 | . . . . . . . . 1 . . . . . . . . . . . . . . 6 8 13 11 10 Treads 22 | . 27 28 33 33 36 34 36 36 30 29 30 30 25 26 18 13 13 10 10 10 10 10 10 8 9 13 11 Device 11 | . 13 14 11 11 9 9 9 9 8 7 7 12 14 12 10 14 20 10 13 11 5 6 7 3 8 11 17 Storage 7 | . 14 14 11 11 9 9 9 9 7 7 7 7 6 6 6 6 6 5 5 5 5 5 5 4 4 4 4 Processor 5 | . . . . . . . . . 6 7 7 7 6 6 6 6 6 10 11 10 10 10 12 9 9 7 4 Hackware 12 | . . . 10 11 9 9 8 3 7 7 11 2 10 8 8 6 6 11 14 18 26 24 16 27 28 23 20 Protection 2 | . . . . . . . . 5 2 7 3 5 6 9 13 11 6 3 . . . . 2 3 . . . Energy Gun 6 | . 14 14 3 . . . 12 12 15 9 15 5 3 6 13 13 13 9 3 3 5 5 7 3 3 7 4 Energy Cannon 4 | . . . 5 21 18 14 5 5 . 4 . 8 9 5 . . . . . . . . . 3 3 . . Ballistic Gun 6 | . 13 14 13 . 8 11 9 8 4 6 5 6 3 5 6 6 6 5 12 6 5 5 7 4 3 3 . Peak Build Rating 187 | 7 10 11 22 22 26 26 37 38 45 51 49 51 70 65 112 116 108 121 109 114 111 113 125 140 146 162 187 Average Rating 74 | 5 7 9 18 20 24 24 28 36 40 45 47 43 55 61 95 113 107 112 95 107 110 111 118 129 143 155 161 On Entrance 68 | . 7 9 9 20 20 25 23 37 36 41 48 47 41 60 64 112 108 108 106 97 112 111 113 122 135 146 151 Avg Prop Armor Cover (%) 4 | . . . . . . 4 . . . . . . . . . . . 10 . . . . . . . 9 . Naked Turns . | . . . . . . . . . . . . . . . . . . . . . . . . . . . . Heaviest Build 132 | 14 50 50 58 61 64 65 69 78 73 75 68 78 87 84 86 87 80 96 81 86 81 86 104 116 132 111 130 Greatest Support 230 | 40 40 40 60 60 80 80 80 90 90 90 90 90 118 114 160 160 160 160 160 135 135 135 135 150 150 225 230 Greatest Overweight (x) 18 | . 2 1 . 1 . 1 . . . . . . . . . . . . . . . . . . . . 18 Average Overweight (x) . | . . 1 . . . . . . . . . . . . . . . . . . . . . . . . . Largest Inventory Capacity 30 | 8 20 20 20 20 20 20 20 20 20 20 20 20 20 20 20 20 20 20 30 20 20 20 20 20 20 20 20 Average Capacity 19 | 7 19 20 20 20 20 20 20 20 20 20 20 20 20 20 20 20 20 20 20 20 20 20 20 20 20 20 19 Most Carried 20 | 1 17 19 20 20 20 20 20 20 20 20 20 20 20 20 20 20 20 20 20 20 20 20 20 20 20 20 20 Average Carried 19 | . 12 18 19 19 19 18 19 19 19 19 19 19 19 19 19 19 20 18 19 19 20 20 19 19 19 19 18 Final Capacity 20 | 8 20 20 20 20 20 20 20 20 20 20 20 20 20 20 20 20 20 20 20 20 20 20 20 20 20 20 5 Final Carried 20 | 1 17 19 20 19 20 19 19 20 20 20 20 20 20 20 20 20 20 15 20 20 20 20 20 20 20 18 5 Class Distribution -------------------- 16% | Scavenger-Mutant 16% | Scavenger-Tank 13% | Bothacker-Gunner 13% | Botlord-Tank 8% | Scavenger-Gunner 8% | Gunner 6% | Bothacker-Tank 4% | Mutant 3% | Commander-Tank Dominant Class ---------------- Mutant | -10/Materials Scavenger-Mutant | -10/Mines Scavenger-Mutant | -9/Materials Scavenger-Mutant | -9/Mines Scavenger-Gunner | -8/Materials Scavenger-Gunner | -8/Garrison Bothacker-Gunner | -8/Materials Bothacker-Tank | -8/Garrison Bothacker-Gunner | -7/Factory Gunner | -7/Garrison Gunner | -7/Factory Bothacker-Gunner | -7/Garrison Gunner | -6/Factory Commander-Tank | -6/Extension Commander-Tank | -6/Cetus Scavenger-Tank | -6/Archives Scavenger-Tank | -6/Hub_04(d) Scavenger-Tank | -5/Factory Bothacker-Tank | -5/Garrison Bothacker-Skirmisher | -4/Factory Bothacker-Skirmisher | -4/Waste Bothacker-Skirmisher | -4/Factory Scavenger-Tank | -4/Garrison Botlord-Tank | -3/Research Botlord-Tank | -3/Testing Botlord-Tank | -2/Research Scavenger-Mutant | -1/Access Resources | -11 -10 -10 -9 -9 -8 -8 -8 -8 -7 -7 -7 -7 -6 -6 -6 -6 -6 -5 -5 -4 -4 -4 -4 -3 -3 -2 -1 ----------- Run | Yrd Mat Min Mat Min Mat Gar Mat Gar Fac Gar Fac Gar Fac Ext Cet Arc Hub Fac Gar Fac Was Fac Gar Res Tes Res Acc Matter Collected 15549 | 274 768 41 652 127 211 621 524 863 173 394 42 793 1188 562 297 282 91 760 1798 200 . . 1659 307 736 610 1576 Remotely 1395 | . . . . . . . . . . . . . . . . . . . 67 . . . 288 157 56 . 827 Salvage Created 26471 | 118 774 112 1350 102 621 935 746 1121 84 856 48 823 1401 747 313 404 290 1585 2662 200 . . 2339 199 1761 1445 5435 Parts 1235 | 8 62 8 91 4 28 55 36 63 6 27 6 46 68 27 13 29 12 75 102 7 . . 74 7 99 70 212 Haulers Intercepted 14 | . 1 . 5 . 3 . 4 . . . . . . . . . . . . . . . . . . . 1 Recyclers Shooed 17 | . 1 . . . . . 1 . . . . . 3 . . . . 1 . 1 . . . 3 . . 7 Parts Field Recycled . | . . . . . . . . . . . . . . . . . . . . . . . . . . . . Retrieved Matter . | . . . . . . . . . . . . . . . . . . . . . . . . . . . . Parts Self-Destructed . | . . . . . . . . . . . . . . . . . . . . . . . . . . . . Prevented . | . . . . . . . . . . . . . . . . . . . . . . . . . . . . Parts Restored . | . . . . . . . . . . . . . . . . . . . . . . . . . . . . Kills | -11 -10 -10 -9 -9 -8 -8 -8 -8 -7 -7 -7 -7 -6 -6 -6 -6 -6 -5 -5 -4 -4 -4 -4 -3 -3 -2 -1 ------- Run | Yrd Mat Min Mat Min Mat Gar Mat Gar Fac Gar Fac Gar Fac Ext Cet Arc Hub Fac Gar Fac Was Fac Gar Res Tes Res Acc Combat Hostiles Destroyed 431 | . 19 5 18 3 10 28 9 25 2 20 1 29 27 7 4 1 4 30 33 3 . . 30 3 25 27 68 Melee 4 | . . . . . . . . . . . . . 2 . . . . . . . . . . . . . 2 Guns 210 | . 19 2 10 . 3 6 7 12 2 17 1 5 5 3 4 1 4 19 32 3 . . 15 3 10 18 9 Cannons 88 | . . . 5 . 7 14 2 7 . . . 11 14 3 . . . . . . . . . . 13 . 12 AOE 98 | . . 3 3 3 . 8 . 6 . 2 . 13 5 . . . . 11 1 . . . 15 . . 9 19 Classes Destroyed 20 | 2 6 . 4 . 1 1 . 2 . 1 . . . . . . . 2 . . . . . . . . 1 Worker 29 | 2 1 . 5 . . . . . . . . . 3 . . . . 2 . . . . . 2 2 . 12 Builder 23 | . 2 . 4 . 1 . . . . . . . 1 1 . . . 1 . . . . . 1 . 1 11 Tunneler 6 | 3 . . . . . . . . . . . . 1 . . . . 1 . . . . . . . 1 . Hauler 14 | . 1 . 5 . 3 . 4 . . . . . . . . . . . . . . . . . . . 1 Recycler 14 | . . . 3 . . . 1 . . . . . 1 1 . . . 1 . . . . . . 1 . 6 Mechanic 3 | . . . 1 . . . . . . . . . . . . . . 1 . . . . . . . . 1 Operator 16 | . 1 . . . 2 . . . . . 1 . 1 1 . 9 . . . . . . . . . . 1 Watcher 10 | . 2 . 1 . . . . . . . . . 1 . 1 . 1 1 . . . . . . . 1 2 Swarmer 105 | . 6 3 5 . 3 8 . 2 1 9 . 14 3 . . . . 5 12 . . . 5 2 5 14 8 Cutter 3 | . . . . . . 3 . . . . . . . . . . . . . . . . . . . . . Saboteur 5 | . . . . . . . . . . . . . . . . . . 1 . . . . 2 . . . 2 Grunt 157 | . 13 2 3 3 2 11 4 12 . 9 . 9 17 3 . . 2 10 9 . . . 18 1 6 5 18 Brawler 12 | . . . . . . . . . . 1 . 1 1 . . . . . . . . . 1 . . 1 7 Duelist 9 | . . . 1 . . . . . 1 1 . 1 1 . . . . . 1 . . . . . . . 3 Protector 1 | . . . . . . . . . . . . . . . . . . . . . . . . . . . 1 Sentry 47 | . . . 9 . 4 6 5 5 . . . 2 . 3 . 1 1 . 6 1 . . 4 . . . . Specialist 6 | . . . . . . . . . . . . . . . . . . 4 . . . . . . . . 2 Hunter 21 | . . . . . 1 . . 1 . . . . . . . . 1 3 4 . . . . . 4 1 6 Programmer 58 | . . . . . . . . 4 . . 1 2 4 . . . . 7 1 2 . . . . 10 6 21 Behemoth 4 | . . . . . . . . 1 . . . . 1 2 . . . . . . . . . . . . . Cetus Guard 4 | . . . . . . . . . . . . . . . 4 . . . . . . . . . . . . Butcher 1 | . . . . . . . . . . . . . . 1 . . . . . . . . . . . . . Best Kill Streak 15 | 2 5 3 5 3 5 8 2 4 1 5 1 9 5 2 4 5 1 14 7 2 . . 15 3 4 4 12 Combat Bots Only 15 | . 4 3 3 3 3 8 2 4 1 5 1 9 4 2 3 1 1 12 7 2 . . 15 3 4 4 10 Max Kills in Single Turn 4 | 1 2 3 4 2 2 2 1 2 1 2 1 3 2 1 2 2 1 4 3 1 . . 3 1 2 3 4 Gunslinging 2 | . 1 . . . . . . . . 1 . . . . . . . . 2 . . . . . . . . Exploded 4 | . . 3 3 2 . 1 . 2 . 2 . 3 2 . . . . 3 1 . . . 3 . . 3 4 Melee 1 | . . . . . . . . . . . . . 1 . . . . . . . . . . . . . 1 Uniques/NPCs Destroyed . | . . . . . . . . . . . . . . . . . . . . . . . . . . . . Combat | -11 -10 -10 -9 -9 -8 -8 -8 -8 -7 -7 -7 -7 -6 -6 -6 -6 -6 -5 -5 -4 -4 -4 -4 -3 -3 -2 -1 -------- Run | Yrd Mat Min Mat Min Mat Gar Mat Gar Fac Gar Fac Gar Fac Ext Cet Arc Hub Fac Gar Fac Was Fac Gar Res Tes Res Acc Hostile Shots Fired 3029 | . 113 18 66 18 26 121 55 137 11 145 31 184 199 67 14 6 78 275 211 30 . 3 181 56 238 165 581 Missed 811 | . 30 4 23 6 8 35 14 50 3 43 21 56 50 17 5 1 15 65 40 7 . 1 37 19 72 49 140 Hits 2218 | . 83 14 43 12 18 86 41 87 8 102 10 128 149 50 9 5 63 210 171 23 . 2 144 37 166 116 441 Melee 31 | . . . 4 . . 3 . . 1 . . . 3 . . . . 2 . . . . . . . . 18 Projectile 2187 | . 83 14 39 12 18 83 41 87 7 102 10 128 146 50 9 5 63 208 171 23 . 2 144 37 166 116 423 AOE 18 | . . . . 13 . 2 . . 1 . . . . . . . . . . . . . . 2 . . . Critical Strikes 105 | . 1 . 3 . 1 5 4 4 1 4 . 6 5 3 2 . . 9 1 2 . . 10 1 12 5 26 Actively Blocked 8 | . . . . . . . . . . . . . . . . . . . . . . . . . . . 8 Part Disruptions 5 | . . . . . . . . . . . . 1 . . . . . . . . . . . . . 1 3 Damage Taken 36152 | . 922 200 629 519 257 1376 622 1570 239 1582 86 1706 2559 621 222 132 692 3673 3072 521 . 53 2607 1075 1723 1555 7939 Core 3922 | . 169 67 91 64 . 165 47 203 6 101 6 112 253 10 94 . 88 261 275 44 . 28 183 79 122 82 1372 Absorbed by Shields 6820 | . . . . . . . . . . . . . . 49 49 . . . 236 . . . 644 . 1665 1148 3029 Reduced by Siege Mode 1894 | . . . . . . . . . . . . . . . . . . 162 391 14 . . 187 5 73 163 899 Ignored by Resistances 22 | . . . . . . . . . . . . . . 22 . . . . . . . . . . . . . Regen/Repaired (Parts) 975 | . 143 . . . . . 255 . . . 64 . 513 . . . . . . . . . . . . . . Core Remaining (%) 56 | 100 . 5 . 61 . . . 24 . . . 67 . . . . 47 . 46 . . . 77 . 84 94 14 Volleys Fired 1724 | 21 93 8 89 7 33 83 39 101 10 71 18 72 90 72 12 40 21 78 141 19 10 3 130 30 136 72 225 Largest 3 | 2 2 2 2 2 3 3 3 3 3 3 3 3 3 3 3 3 3 3 3 3 1 1 3 3 3 3 3 Hottest 480 | 60 70 70 83 120 158 158 167 173 153 174 174 199 191 179 195 195 240 480 144 144 88 7 204 242 242 367 249 Shots Fired 3304 | 41 186 15 168 11 89 167 115 184 16 139 23 138 214 132 35 103 51 148 316 39 11 5 287 72 212 151 236 Gun 2380 | 41 186 14 125 . 28 58 88 109 10 115 11 68 117 69 34 103 51 130 309 31 2 2 267 49 88 135 140 Cannon 632 | . . . 42 8 61 92 27 53 . 18 . 52 74 30 . . . . . . . . . 18 121 . 36 Launcher 142 | . . 1 1 3 . 17 . 9 . 3 . 16 5 . . . . 13 3 . . . 11 . . 5 55 Special 150 | . . . . . . . . 13 6 3 12 2 18 33 1 . . 5 4 8 9 3 9 5 3 11 5 Kinetic 1205 | 21 93 7 99 . 28 58 45 40 3 31 3 36 58 41 11 34 15 53 269 20 . 1 132 25 42 40 . Thermal 1800 | 20 93 7 68 8 61 92 70 122 7 102 8 84 133 58 23 69 36 77 40 11 2 1 135 42 167 95 169 Explosive 95 | . . 1 1 3 . 17 . 9 . 3 . 16 5 . . . . 13 3 . . . 11 . . 3 10 Electromagnetic 54 | . . . . . . . . . . . . . . . . . . . . . . . . . . 2 52 Robot Hit Streak 44 | 7 12 8 23 5 12 11 12 13 9 10 14 11 26 44 11 10 5 14 36 10 4 5 24 6 19 17 26 Robot Miss Streak 9 | 4 4 2 3 1 3 4 3 2 2 4 1 4 3 2 4 9 3 4 7 2 1 1 4 4 3 2 3 Penetration Max 1 | . . . . . . . . . . . . . . . 1 1 . 1 1 1 . . 1 1 1 1 . Secondary Targets 39 | . 5 . . . . . . . . 4 . 1 1 . 2 . . 3 10 1 . . 5 1 2 4 . Max Gunslinging Chain 2 | . 1 . . . . . . . . 1 . 1 1 . 1 . . 1 2 1 . . 1 1 1 1 . Capacitor 143 | . . . . . . . . . . . . . . . . . . . . . . . . . . . 143 Shots Hit Robots 2011 | 24 107 10 108 7 55 83 84 86 12 65 14 64 144 112 24 50 28 82 237 28 8 3 185 43 100 101 147 Core Hits 1071 | 6 45 8 49 8 21 49 23 44 3 37 3 58 70 31 13 24 12 75 118 7 . . 105 16 44 57 145 Critical Kills 27 | . 1 . . . . . . . . 1 . . 1 . 2 2 . 5 7 . . . 1 1 2 2 2 Critical Parts Destroyed 26 | 1 . . . . . . . . . . . . . . . 1 2 3 15 1 . . 2 . 1 . . Critical Strikes 92 | 1 2 . 2 . . . 1 1 . 9 . . 5 4 3 3 2 8 23 2 . . 5 2 3 2 14 Burn 38 | . 1 . 2 . . . 1 1 . 8 . . 3 4 1 . . . 1 1 . . 2 1 . . 12 Meltdown 6 | . . . . . . . . . . 1 . . 1 . . . . . . . . . . . 2 . 2 Destroy 48 | 1 1 . . . . . . . . . . . 1 . 2 3 2 8 22 1 . . 3 1 1 2 . Melee Attacks 27 | . . . . . . 3 11 1 . . . . 9 . . . . . . 3 . . . . . . . Impact . | . . . . . . . . . . . . . . . . . . . . . . . . . . . . Slashing 10 | . . . . . . . . 1 . . . . 9 . . . . . . . . . . . . . . Piercing 3 | . . . . . . . . . . . . . . . . . . . . 3 . . . . . . . Sneak Attacks 9 | . . . . . . 3 6 . . . . . . . . . . . . . . . . . . . . Combat Hostiles . | . . . . . . . . . . . . . . . . . . . . . . . . . . . . Follow-up Attacks . | . . . . . . . . . . . . . . . . . . . . . . . . . . . . Damage Inflicted 67739 | 242 1329 269 1917 302 1249 2965 1476 2255 142 1542 92 3045 4404 1874 661 1542 787 4261 5495 555 72 . 6739 1275 3511 3975 15763 Guns 34686 | 242 1321 152 1223 . 272 450 1030 1072 132 1138 92 722 1614 1102 661 1542 771 2355 5218 517 56 . 4491 867 1882 2928 2836 Cannons 11885 | . . . 508 119 977 1199 437 624 . 188 . 799 1374 730 . . . . . . . . . 348 1567 . 3015 Explosions 20586 | . . 117 132 165 . 1316 . 488 . 199 . 1524 1393 . . . . 1873 277 . . . 2248 . . 1046 9808 Melee 71 | . . . . . . . . 71 . . . . . . . . . . . . . . . . . . . Ramming 511 | . 8 . 54 18 . . 9 . 10 17 . . 23 42 . . 16 33 . 38 16 . . 60 62 1 104 Kinetic 16108 | 144 674 78 986 . 272 450 500 339 35 284 18 300 637 511 222 541 200 909 4431 314 . . 2292 433 658 880 . Thermal 34059 | 98 647 74 745 119 977 1199 967 1357 97 1042 74 1221 2901 1321 439 1001 571 1446 787 203 56 . 2199 782 2791 2145 8800 Explosive 12651 | . . 117 132 165 . 1316 . 488 . 199 . 1524 843 . . . . 1720 277 . . . 2248 . . 790 2832 Electromagnetic 4339 | . . . . . . . . . . . . . . . . . . 153 . . . . . . . 159 4027 Impact . | . . . . . . . . . . . . . . . . . . . . . . . . . . . . Slashing 71 | . . . . . . . . 71 . . . . . . . . . . . . . . . . . . . Piercing . | . . . . . . . . . . . . . . . . . . . . . . . . . . . . Highest Corruption 81 | . . . 1 1 . . . 4 . . 1 2 4 4 32 32 5 8 8 1 12 12 12 1 9 12 81 Average Corruption 9 | . . . 1 1 . . . 3 . . 1 1 2 2 14 24 5 7 8 1 7 12 12 1 2 5 41 Corruption Purged 31 | . . . . . . . . . . . . . . 4 . 27 . . . . . . . . . . . Corruption Blocked . | . . . . . . . . . . . . . . . . . . . . . . . . . . . . Effects 503 | . . . 1 10 . . . 36 . . 4 13 16 2 19 38 13 19 70 1 4 11 78 8 29 18 113 Message Errors 103 | . . . . 1 . . . 7 . . 2 2 3 1 5 6 3 2 16 1 3 4 15 1 4 6 21 Matter Fused 118 | . . . . 3 . . . 10 . . . 3 4 . 6 5 2 6 18 . . . 18 1 8 6 28 Heat Flow Errors 60 | . . . . 4 . . . 8 . . . 2 . . 2 4 . 2 7 . . 4 9 3 2 . 13 Energy Discharges 50 | . . . 1 . . . . 3 . . . 3 3 1 1 2 1 2 5 . . . 12 . 3 2 11 Parts Rejected 7 | . . . . 1 . . . . . . . . . . . . . . . . . . 1 . . . 5 Parts Fused 3 | . . . . . . . . . . . . . . . . 1 . . . . . . 1 . . . 1 Data Loss (minor) 53 | . . . . . . . . 1 . . 2 1 3 . 2 3 4 1 10 . . 1 7 3 3 3 9 Data Loss (major) 28 | . . . . 1 . . . 4 . . . 1 1 . 1 2 . 1 2 . . . 6 . 3 1 5 Misfires 25 | . . . . . . . . . . . . 1 2 . 1 4 2 1 2 . 1 2 2 . 4 . 3 Alerts 15 | . . . . . . . . 3 . . . . . . 1 2 1 2 4 . . . 1 . . . 1 Misdirections 6 | . . . . . . . . . . . . . . . . . . . . . . . 1 . . . 5 Weapon Failures 35 | . . . . . . . . . . . . . . . . 9 . 2 6 . . . 5 . 2 . 11 Overload Shots 28 | . . . . . . . . . . . . . . . . . 7 10 . . . . . . . 11 . Effects 1 | . . . . . . . . . . . . . . . . . 1 . . . . . . . . . . Energy Bleed 1 | . . . . . . . . . . . . . . . . . 1 . . . . . . . . . . Overflow Damage 2562 | . . . . . 7 28 . 9 . . . 23 110 8 . . . 21 . . . . 62 11 28 62 2193 Projectiles 1466 | . . . . . 7 28 . 9 . . . 10 24 . . . . . . . . . . . 28 . 1360 Explosions 1065 | . . . . . . . . . . . . 13 84 . . . . 21 . . . . 62 . . 62 823 Melee 31 | . . . . . . . . . . . . . 2 8 . . . . . . . . . 11 . . 10 Knockbacks 6 | . . . . . . . . . . . . . . . . . . . . 1 . . . 3 . . 2 Impact 6 | . . . . . . . . . . . . . . . . . . . . 1 . . . 3 . . 2 Kinetic . | . . . . . . . . . . . . . . . . . . . . . . . . . . . . Secondary . | . . . . . . . . . . . . . . . . . . . . . . . . . . . . Self-Inflicted Damage 703 | . . 32 . . . 56 . 58 . 28 . 18 . . . . . 96 . . . . 23 . . 42 350 Shots 25 | . . 1 . . . 3 . 2 . 1 . 1 . . . . . 3 . . . . 1 . . 1 12 Rammed 50 | . 2 . 5 5 . . 3 . 1 2 . . 1 3 . . 2 5 . 4 2 . . 4 7 1 3 Targets Rammed 59 | . 2 . 8 5 . . 3 . 1 2 . . 4 3 . . 2 6 . 4 2 . . 4 8 1 4 Kicked . | . . . . . . . . . . . . . . . . . . . . . . . . . . . . Crushed 9 | . . . 3 . . . . . . . . . 3 . . . . 1 . . . . . . 1 . 1 Highest Temperature 519 | . 84 4 74 271 260 188 323 369 174 374 87 293 519 327 189 197 255 420 216 120 157 273 411 332 276 267 498 Average Temperature 91 | . 19 4 17 87 81 52 66 93 66 90 37 70 92 73 107 96 97 130 79 47 83 121 109 139 117 85 123 Received Heat Transfer 6715 | . 432 96 192 6 99 567 306 477 48 540 18 444 819 153 27 . 111 823 345 54 . 9 540 114 205 75 215 Effects 27 | . . . . . 1 . . 3 . 1 . . 1 . . . . 5 . . . 1 7 3 . . 5 Shutdowns 4 | . . . . . . . . . . . . . 1 . . . . . . . . . . 1 . . 2 Energy Bleed 8 | . . . . . 1 . . 3 . 1 . . . . . . . . . . . . . 1 . . 2 Interference 10 | . . . . . . . . . . . . . . . . . . 3 . . . 1 5 1 . . . Short Circuit 2 | . . . . . . . . . . . . . . . . . . . . . . . 1 . . . 1 Damage (minor) 1 | . . . . . . . . . . . . . . . . . . . . . . . 1 . . . . Damage (major) 2 | . . . . . . . . . . . . . . . . . . 2 . . . . . . . . . Siege Activations 47 | . . . . . . . . . . . . . . . . . 1 4 8 1 . . 6 2 8 5 12 Total Turns 1335 | . . . . . . . . . . . . . . . . . 4 64 191 11 . . 99 9 74 103 780 Longest Duration 272 | . . . . . . . . . . . . . . . . . 4 27 47 11 . . 42 8 23 30 272 Martial Activations . | . . . . . . . . . . . . . . . . . . . . . . . . . . . . Shielding Activations . | . . . . . . . . . . . . . . . . . . . . . . . . . . . . Robots Disrupted 1 | . . . . . . . . . . . . . . . . . . 1 . . . . . . . . . Combat Hostiles 1 | . . . . . . . . . . . . . . . . . . 1 . . . . . . . . . Robots Corrupted 23 | . . . . . . . . . . . . . . 1 . . . . . . . . . . . . 22 Combat Hostiles 20 | . . . . . . . . . . . . . . . . . . . . . . . . . . . 20 Parts Fried 46 | . . . . . . . . . . . . . . 3 . . . . . . . . . 3 . 1 39 Impact Corruptions 4 | . . . . . . . . . . . . . 1 1 . . . . . . . . . 1 . . 1 Robots Melted 11 | . . . . . . . . . . 1 . . 1 1 . . . . . . . . . . 2 . 6 Combat Hostiles 11 | . . . . . . . . . . 1 . . 1 1 . . . . . . . . . . 2 . 6 Parts Melted 144 | . 4 . 1 . 5 4 8 1 1 12 . 4 10 7 2 4 2 5 1 4 . . 6 . 10 10 43 Heat Transferred 49721 | 225 1737 222 1628 185 1480 1776 1702 2067 211 2721 111 1910 5097 2697 722 1295 703 1498 1554 296 74 . 3034 962 2812 2518 10484 Parts Sabotaged 4 | . . . . . . . . . . . . . . . . . . . . . . . . . . . 4 Parts Stolen . | . . . . . . . . . . . . . . . . . . . . . . . . . . . . Parts Stripped . | . . . . . . . . . . . . . . . . . . . . . . . . . . . . Power Chain Reactions 6 | . . . . . . . . . . . . . . . . . . . . . . . . . . 1 5 Alert | -11 -10 -10 -9 -9 -8 -8 -8 -8 -7 -7 -7 -7 -6 -6 -6 -6 -6 -5 -5 -4 -4 -4 -4 -3 -3 -2 -1 ------- Run | Yrd Mat Min Mat Min Mat Gar Mat Gar Fac Gar Fac Gar Fac Ext Cet Arc Hub Fac Gar Fac Was Fac Gar Res Tes Res Acc Maximum Alert Level 5 | . . . 1 . . 3 2 4 2 3 2 4 3 1 . 1 3 2 5 3 1 . 4 3 1 2 5 Low Security (%) 43 | 100 100 100 79 100 100 25 95 11 . . 1 4 . 90 100 92 44 26 . . . 100 33 . 81 50 . Level 1 13 | . . . 20 . . 18 3 14 19 8 95 16 49 9 . 7 3 8 5 . 100 . 5 . 18 21 16 Level 2 20 | . . . . . . 20 1 38 80 83 3 29 47 . . . 8 65 18 2 . . 6 72 . 28 13 Level 3 12 | . . . . . . 35 . 25 . 7 . 21 3 . . . 43 . 30 97 . . 31 27 . . 25 Level 4 6 | . . . . . . . . 10 . . . 28 . . . . . . 27 . . . 22 . . . 29 Level 5 2 | . . . . . . . . . . . . . . . . . . . 18 . . . . . . . 15 High Security . | . . . . . . . . . . . . . . . . . . . . . . . . . . . . Max Security . | . . . . . . . . . . . . . . . . . . . . . . . . . . . . Peak Influence 2200 | 10 93 74 249 95 102 1007 490 1224 642 779 408 1383 725 224 172 211 905 574 1723 904 272 141 1398 814 275 575 2200 Initial 904 | . . 34 20 95 . 5 490 15 642 227 408 135 725 186 112 28 2 429 375 904 272 141 . 786 229 150 328 Average 425 | . 30 27 123 9 20 530 76 652 482 550 289 767 434 127 108 122 449 378 1058 790 241 64 683 594 105 273 1027 Influence Increases 19597 | 25 613 123 764 88 346 1132 359 1239 123 662 100 1328 935 786 348 355 1302 1106 1418 123 . 2 1558 146 952 975 2689 Destroy 0b10 Robot/C 9820 | . 380 100 360 60 200 600 180 600 80 420 60 700 540 380 160 80 380 680 660 60 . . 700 60 500 540 1340 Destroy 0b10 Robot/NC 730 | 25 35 . 95 . 30 10 25 5 . 5 5 . 40 20 10 45 15 40 60 . . . 45 15 15 15 175 Destroy Leader 1370 | . 86 20 142 10 66 40 78 20 20 10 20 50 92 32 . . 92 104 40 10 . . 40 . 80 82 236 Allied During Kill 1104 | . . . . . 8 10 . 28 5 1 5 16 . 235 168 120 415 20 . 3 . . 38 6 . 26 . Successful Hack 531 | . 35 . 32 . 16 6 49 14 18 . 7 . 28 68 8 . 3 16 12 36 . . . 30 52 57 44 Select Force Hacks 220 | . 60 . 60 . . . . . . . . . . . . . 100 . . . . . . . . . . Disable Machine 840 | . . . 15 . 15 30 15 30 . 15 . 60 150 . . 90 120 105 . . . . 45 . 75 30 45 Anti-Garrison Action 2300 | . . . . . . 300 . 400 . 150 . 350 . . . . 150 . 500 . . . 450 . . . . Destroy Structure 2157 | . 2 3 15 18 11 106 12 112 . 46 3 122 70 6 2 20 27 126 116 14 . 2 195 20 110 225 774 Partial Spotted 30 | . . . . . . . . . . . . . . . . . . . . . . . . . 30 . . Lose Combat Pursuer 495 | . 15 . 45 . . 30 . 30 . 15 . 30 15 45 . . . 15 30 . . . 45 15 90 . 75 Influence Decreases 17502 | 25 523 160 571 334 338 133 1342 39 1022 208 685 139 1938 966 478 416 434 1446 232 1067 577 204 160 1136 1091 697 1141 Entered New Map 5994 | . . 56 33 151 . 3 517 9 582 98 371 59 658 194 88 42 7 448 162 819 507 61 . 612 179 119 219 Time Decay 7874 | 25 503 104 528 183 219 . 530 . 380 . 294 . 610 562 270 334 227 498 . 238 60 143 . 464 572 478 652 Lost Part 1010 | . 20 . 10 . . 90 . 10 . 90 . 50 50 10 . . . 160 50 10 . . 60 40 30 60 270 Lost Ally 1076 | . . . . . 46 40 20 20 60 20 20 30 20 200 120 40 200 40 20 . 10 . 100 20 10 40 . Purge Threat 1548 | . . . . . 73 . 275 . . . . . 600 . . . . 300 . . . . . . 300 . . Squads Dispatched 86 | . 4 . 2 . 3 . 4 . 2 . 1 . 7 . . . 11 8 . 1 . . . 9 7 9 18 Investigation 14 | . 3 . 2 . 1 . 2 . . . . . . . . . 3 . . . . . . 2 . . 1 Extermination 25 | . . . . . . . . . 2 . 1 . 3 . . . 1 2 . 1 . . . . 4 4 7 Reinforcement 36 | . 1 . . . 2 . 2 . . . . . 4 . . . 4 5 . . . . . 7 3 4 4 Assault 10 | . . . . . . . . . . . . . . . . . 2 1 . . . . . . . 1 6 Garrison 1 | . . . . . . . . . . . . . . . . . 1 . . . . . . . . . . Intercept . | . . . . . . . . . . . . . . . . . . . . . . . . . . . . Searches Triggered . | . . . . . . . . . . . . . . . . . . . . . . . . . . . . Construction Impeded 10 | . . . . . . . . . . . . . . . . . 1 2 . . . . . . 1 3 3 Haulers Reinforced 7 | . . . . . . . . . . . . . 2 . . . 1 . . . . . . 4 . . . Active Scanning Responses . | . . . . . . . . . . . . . . . . . . . . . . . . . . . . Cargo Convoy Interrupts 1 | . . . . . . . . . . . . . . . . . . 1 . . . . . . . . . Alert ID Control Effect 8 | . . . . . . . . . . . . . . . . . . . . . . . . 4 . 4 . Stealth | -11 -10 -10 -9 -9 -8 -8 -8 -8 -7 -7 -7 -7 -6 -6 -6 -6 -6 -5 -5 -4 -4 -4 -4 -3 -3 -2 -1 --------- Run | Yrd Mat Min Mat Min Mat Gar Mat Gar Fac Gar Fac Gar Fac Ext Cet Arc Hub Fac Gar Fac Was Fac Gar Res Tes Res Acc Distress Signals 34 | . 3 . 1 . . . 2 . . . . . 3 3 2 . 1 2 . 1 . . . 2 5 5 4 Communications Jammed 59 | . . . . . . . . . . . . . 33 3 . . 15 8 . . . . . . . . . Distress Signals 59 | . . . . . . . . . . . . . 33 3 . . 15 8 . . . . . . . . . Times Spotted 673 | . 30 5 26 6 13 34 19 36 5 28 9 35 37 22 10 17 13 45 35 5 4 1 38 21 45 43 91 Peak Tracking Total 11 | . 4 3 3 3 4 4 3 6 3 10 3 7 5 5 5 2 3 11 7 2 2 1 9 5 5 5 8 Tactical Retreats 27 | . 1 . 3 . . 2 . 1 . 1 . 2 1 2 . . . 1 2 . . . 2 1 3 . 5 Traps | -11 -10 -10 -9 -9 -8 -8 -8 -8 -7 -7 -7 -7 -6 -6 -6 -6 -6 -5 -5 -4 -4 -4 -4 -3 -3 -2 -1 ------- Run | Yrd Mat Min Mat Min Mat Gar Mat Gar Fac Gar Fac Gar Fac Ext Cet Arc Hub Fac Gar Fac Was Fac Gar Res Tes Res Acc Traps Triggered 24 | . 4 . 1 . 1 4 . 3 . . 1 1 2 . . . 1 1 2 1 . . . 1 . 1 . Indirectly 1 | . . . . . . . . . . . . . . . . . . . . . . . . . . 1 . Trap Hack Attempts . | . . . . . . . . . . . . . . . . . . . . . . . . . . . . Triggered . | . . . . . . . . . . . . . . . . . . . . . . . . . . . . Disarmed . | . . . . . . . . . . . . . . . . . . . . . . . . . . . . Reprogrammed . | . . . . . . . . . . . . . . . . . . . . . . . . . . . . Reused . | . . . . . . . . . . . . . . . . . . . . . . . . . . . . Traps Extracted . | . . . . . . . . . . . . . . . . . . . . . . . . . . . . Installed . | . . . . . . . . . . . . . . . . . . . . . . . . . . . . Triggered . | . . . . . . . . . . . . . . . . . . . . . . . . . . . . Machines | -11 -10 -10 -9 -9 -8 -8 -8 -8 -7 -7 -7 -7 -6 -6 -6 -6 -6 -5 -5 -4 -4 -4 -4 -3 -3 -2 -1 ---------- Run | Yrd Mat Min Mat Min Mat Gar Mat Gar Fac Gar Fac Gar Fac Ext Cet Arc Hub Fac Gar Fac Was Fac Gar Res Tes Res Acc Machines Disabled 83 | . . . 1 . 1 6 1 7 . 4 . 8 10 . . 6 9 7 4 . . . 8 . 6 2 3 Max in Single Turn 5 | . . . 1 . 1 1 1 1 . 1 . 1 5 . . 1 1 2 1 . . . 1 . 1 1 1 Garrison Access 4 | . . . . . . . . . . . . . 1 . . . 1 1 . . . . . . 1 . . Garrison Relay 24 | . . . . . . 4 . 4 . 3 . 4 . . . . . . 4 . . . 5 . . . . Network Hub 2 | . . . . . . . . . . . . . . . . . 2 . . . . . . . . . . Energy Cycler 1 | . . . . . . . . . . . . . . . . . . . . . . . . . . . 1 Machines Repaired . | . . . . . . . . . . . . . . . . . . . . . . . . . . . . Machines Dismantled . | . . . . . . . . . . . . . . . . . . . . . . . . . . . . Machines Sabotaged 2 | . . . . . . . . . . . . . . . . . 2 . . . . . . . . . . Overloaded Fab Kills . | . . . . . . . . . . . . . . . . . . . . . . . . . . . . Hacking | -11 -10 -10 -9 -9 -8 -8 -8 -8 -7 -7 -7 -7 -6 -6 -6 -6 -6 -5 -5 -4 -4 -4 -4 -3 -3 -2 -1 --------- Run | Yrd Mat Min Mat Min Mat Gar Mat Gar Fac Gar Fac Gar Fac Ext Cet Arc Hub Fac Gar Fac Was Fac Gar Res Tes Res Acc Machines Accessed 109 | . 8 . 12 . 5 2 10 2 4 2 6 2 8 15 1 . 4 5 1 3 . 1 1 5 7 2 3 Terminals 83 | . 5 . 9 . 4 2 7 2 2 2 3 2 5 14 1 . 4 3 1 3 . . 1 3 5 2 3 Fabricators . | . . . . . . . . . . . . . . . . . . . . . . . . . . . . Repair Stations 5 | . 1 . . . . . 2 . . . 1 . . 1 . . . . . . . . . . . . . Recycling Units 4 | . 2 . 2 . . . . . . . . . . . . . . . . . . . . . . . . Scanalyzers 8 | . . . 1 . . . . . 1 . 1 . 2 . . . . . . . . . . 2 1 . . Garrison Access 9 | . . . . . 1 . 1 . 1 . 1 . 1 . . . . 2 . . . 1 . . 1 . . Total Hacks 324 | . 30 . 34 . 18 3 31 3 9 2 11 4 16 41 2 . 9 13 2 11 . 1 4 25 35 10 10 Successful 164 | . 20 . 23 . 11 1 18 1 6 1 8 . 7 20 1 . 6 5 1 4 . 1 1 5 17 4 3 Failed 156 | . 10 . 10 . 7 2 13 2 2 1 3 4 9 21 1 . 3 8 1 7 . . 3 19 17 6 7 Catastrophic 29 | . 2 . . . . . . 1 . . 1 2 2 5 . . 1 3 1 3 . . . 4 3 1 . Database Lockouts 4 | . . . 1 . . . . . 1 . . . . . . . . . . . . . . 1 1 . . Manual 144 | . 20 . 26 . 13 . 13 . 3 . 3 . 4 15 1 . 8 . 1 9 . . 3 . 11 8 6 Terminals 268 | . 19 . 30 . 17 3 22 3 5 2 5 4 12 40 2 . 9 11 2 11 . . 4 16 31 10 10 Fabricators . | . . . . . . . . . . . . . . . . . . . . . . . . . . . . Repair Stations 18 | . 7 . . . . . 7 . . . 3 . . 1 . . . . . . . . . . . . . Recycling Units 6 | . 4 . 2 . . . . . . . . . . . . . . . . . . . . . . . . Scanalyzers 20 | . . . 2 . . . . . 3 . 2 . 2 . . . . . . . . . . 9 2 . . Garrison Access 12 | . . . . . 1 . 2 . 1 . 1 . 2 . . . . 2 . . . 1 . . 2 . . Terminal Hacks 77 | . 4 . 12 . 8 1 7 1 1 1 . . 3 15 1 . 1 3 1 3 . . 1 1 10 2 1 Record 1 | . . . . . . . . . . . . . . . . . . . . . . . . . 1 . . Part Schematic 3 | . 1 . . . . . . . . . . . . . . . . . . 2 . . . . . . . Robot Analysis 6 | . . . 3 . . . 1 . . . . . . 1 . . . . . 1 . . . . . . . Prototype ID Bank 17 | . . . 7 . 1 . 1 . 1 . . . 1 5 . . . . . . . . . . 1 . . Open Door 6 | . . . . . . 1 . . . . . . . 3 1 . . . . . . . . . . . 1 Level Access Points 1 | . . . . . . . . . . . . . . . . . . . . . . . . . 1 . . Branch Access Points 2 | . . . . . . . 1 . . . . . . . . . . . . . . . . 1 . . . Emergency Access Points 4 | . . . . . . . . 1 . . . . . . . . . . 1 . . . 1 . 1 . . Terminal Index 6 | . 1 . 1 . . . 1 . . . . . . . . . 1 . . . . . . . 1 1 . Garrison Index 3 | . . . . . 1 . . . . . . . . . . . . 1 . . . . . . 1 . . Alert Level 1 | . . . . . 1 . . . . . . . . . . . . . . . . . . . . . . Unreport Threat 6 | . . . . . 2 . . . . . . . 1 . . . . 2 . . . . . . 1 . . Locate Traps 1 | . . . . . . . . . . . . . . 1 . . . . . . . . . . . . . Maintenance Status 1 | . . . . . . . . . . . . . . 1 . . . . . . . . . . . . . Security Status 1 | . . . . . . . . . . . . . . . . . . . . . . . . . 1 . . Surveillance Status 1 | . . . . . . . . . . . . . . 1 . . . . . . . . . . . . . Recall Reinforcements 2 | . . . . . 1 . 1 . . . . . . . . . . . . . . . . . . . . Registered Components 7 | . 1 . . . 1 . 1 . . . . . 1 1 . . . . . . . . . . 1 1 . Registered Prototypes 1 | . . . 1 . . . . . . . . . . . . . . . . . . . . . . . . Zone Layout 6 | . 1 . . . 1 . 1 . . . . . . 2 . . . . . . . . . . 1 . . Security Stations 1 | . . . . . . . . . . 1 . . . . . . . . . . . . . . . . . Fabricator Hacks . | . . . . . . . . . . . . . . . . . . . . . . . . . . . . Repair Station Hacks 13 | . 6 . . . . . 5 . . . 2 . . . . . . . . . . . . . . . . Scan Component 7 | . 3 . . . . . 3 . . . 1 . . . . . . . . . . . . . . . . Repair 6 | . 3 . . . . . 2 . . . 1 . . . . . . . . . . . . . . . . Recycling Unit Hacks . | . . . . . . . . . . . . . . . . . . . . . . . . . . . . Scanalyzer 10 | . . . 1 . . . . . 2 . 2 . . . . . . . . . . . . 4 1 . . Retrieve Study 10 | . . . 1 . . . . . 2 . 2 . . . . . . . . . . . . 4 1 . . Garrison Access Hacks 12 | . . . . . 1 . 2 . 1 . 1 . 2 . . . . 2 . . . 1 . . 2 . . Unlock Access 6 | . . . . . 1 . 1 . 1 . 1 . . . . . . 1 . . . 1 . . . . . Seal Access 3 | . . . . . . . . . . . . . 1 . . . . 1 . . . . . . 1 . . Coupler Status 3 | . . . . . . . 1 . . . . . 1 . . . . . . . . . . . 1 . . Unauthorized Hacks 52 | . 10 . 10 . 2 . 4 . 2 . 3 . 2 5 . . 5 . . 1 . . . . 4 2 2 Terminals 47 | . 8 . 8 . 2 . 4 . 2 . 2 . 2 5 . . 5 . . 1 . . . . 4 2 2 Assimilate 2 | . . . . . . . . . . . . . . . . . . . . 1 . . . . 1 . . Botnet 23 | . 3 . 2 . 2 . 2 . 1 . 1 . 1 4 . . 2 . . . . . . . 2 1 2 Operators 8 | . . . 1 . . . 1 . 1 . 1 . 1 1 . . . . . . . . . . 1 1 . Skim 11 | . 5 . 5 . . . 1 . . . . . . . . . . . . . . . . . . . . Sabotage 3 | . . . . . . . . . . . . . . . . . 3 . . . . . . . . . . Fabricators . | . . . . . . . . . . . . . . . . . . . . . . . . . . . . Repair Stations 1 | . . . . . . . . . . . 1 . . . . . . . . . . . . . . . . Mechanics 1 | . . . . . . . . . . . 1 . . . . . . . . . . . . . . . . Recycling Units 4 | . 2 . 2 . . . . . . . . . . . . . . . . . . . . . . . . Tunnel 4 | . 2 . 2 . . . . . . . . . . . . . . . . . . . . . . . . Scanalyzers . | . . . . . . . . . . . . . . . . . . . . . . . . . . . . Garrison Access . | . . . . . . . . . . . . . . . . . . . . . . . . . . . . Data Cores Recovered 2 | . . . . . . . . . . . 1 . . 1 . . . . . . . . . . . . . Used . | . . . . . . . . . . . . . . . . . . . . . . . . . . . . Hacking Detections 91 | . 6 . 9 . 5 1 9 2 4 2 5 2 6 13 1 . 2 4 1 3 . . 1 4 6 2 3 Full Trace Events 4 | . . . . . 1 . . . . . . 1 . . . . . . . . . . . 2 . . . Feedback Events 1 | . . . . . . . . . . . . . . . . . . . . . . . . 1 . . . Corruption 1 | . . . . . . . . . . . . . . . . . . . . . . . . 1 . . . Feedback Blocked . | . . . . . . . . . . . . . . . . . . . . . . . . . . . . Robot Schematics Acquired . | . . . . . . . . . . . . . . . . . . . . . . . . . . . . Robots Built . | . . . . . . . . . . . . . . . . . . . . . . . . . . . . Authchips . | . . . . . . . . . . . . . . . . . . . . . . . . . . . . Time . | . . . . . . . . . . . . . . . . . . . . . . . . . . . . Total Robot Build Rating . | . . . . . . . . . . . . . . . . . . . . . . . . . . . . Part Schematics Acquired 3 | . 1 . . . . . . . . . . . . . . . . . . 2 . . . . . . . Parts Built . | . . . . . . . . . . . . . . . . . . . . . . . . . . . . Authchips . | . . . . . . . . . . . . . . . . . . . . . . . . . . . . Time . | . . . . . . . . . . . . . . . . . . . . . . . . . . . . Total Part Build Rating . | . . . . . . . . . . . . . . . . . . . . . . . . . . . . Part Studies Acquired 10 | . . . 1 . . . . . 2 . 2 . . . . . . . . . . . . 4 1 . . Parts Repaired 6 | . 3 . . . . . 2 . . . 1 . . . . . . . . . . . . . . . . Time 162 | . 78 . . . . . 52 . . . 32 . . . . . . . . . . . . . . . . Parts Recycled . | . . . . . . . . . . . . . . . . . . . . . . . . . . . . Recycled Matter . | . . . . . . . . . . . . . . . . . . . . . . . . . . . . Retrieved Matter . | . . . . . . . . . . . . . . . . . . . . . . . . . . . . Retrieved Components . | . . . . . . . . . . . . . . . . . . . . . . . . . . . . Parts Scanalyzed . | . . . . . . . . . . . . . . . . . . . . . . . . . . . . Part Schematics Acquired . | . . . . . . . . . . . . . . . . . . . . . . . . . . . . Parts Damaged . | . . . . . . . . . . . . . . . . . . . . . . . . . . . . Bothacking | -11 -10 -10 -9 -9 -8 -8 -8 -8 -7 -7 -7 -7 -6 -6 -6 -6 -6 -5 -5 -4 -4 -4 -4 -3 -3 -2 -1 ------------ Run | Yrd Mat Min Mat Min Mat Gar Mat Gar Fac Gar Fac Gar Fac Ext Cet Arc Hub Fac Gar Fac Was Fac Gar Res Tes Res Acc Used RIF Installer 7 | . . . . . . 2 . 1 . 1 . 1 . . . . . . 1 . . . 1 . . . . Hotswap 1 | . . . . . . . . . . 1 . . . . . . . . . . . . . . . . . Code Merge 1 | . . . . . . . . . . . . 1 . . . . . . . . . . . . . . . Robot Detection 1 | . . . . . . . . . . . . . . . . . . . 1 . . . . . . . . Patrol Navigation 1 | . . . . . . 1 . . . . . . . . . . . . . . . . . . . . . Alert ID Control 1 | . . . . . . . . . . . . . . . . . . . . . . . 1 . . . . Autooverride 1 | . . . . . . . . 1 . . . . . . . . . . . . . . . . . . . Robots Hacked 66 | . . . . . . . 3 5 4 3 5 1 7 5 1 . . 1 3 3 5 1 3 6 2 6 2 Non-combat 22 | . . . . . . . 3 . 1 . 3 . 7 . . . . . . 2 . . . 1 2 1 2 Combat 44 | . . . . . . . . 5 3 3 2 1 . 5 1 . . 1 3 1 5 1 3 5 . 5 . Autooverrided 9 | . . . . . . . . . 1 2 . . . 1 . . . . 1 . . . . 3 . 1 . Robot Hacks Applied 83 | . . . . . . . 8 6 4 1 7 1 13 4 1 . . 2 2 5 8 2 3 4 2 7 3 parse_system 9 | . . . . . . . 1 . . . . . . 2 1 . . . 1 . 3 . . . . 1 . find_chute 2 | . . . . . . . . . 1 . . . 1 . . . . . . . . . . . . . . map_walls 2 | . . . . . . . . . . . 1 . 1 . . . . . . . . . . . . . . find_fabricator 1 | . . . . . . . . . . . . . . . . . . . . 1 . . . . . . . drop_inventory 7 | . . . . . . . . . . . 1 . 3 . . . . . . 2 . . . 1 . . . recall_reinforcements 2 | . . . . . . . . . . . . . 2 . . . . . . . . . . . . . . locate_stockpiles 1 | . . . . . . . . . . . 1 . . . . . . . . . . . . . . . . find_station 1 | . . . . . . . 1 . . . . . . . . . . . . . . . . . . . . purge_threat 7 | . . . . . . . 2 . . . . . 4 . . . . . . . . . . . 1 . . map_route 5 | . . . . . . . 1 . . . . . . . . . . . . . . . . . 1 . 3 mark_security 1 | . . . . . . . 1 . . . . . . . . . . . . . . . . . . . . ignore_targets 5 | . . . . . . . . . . . . . . . . . . . . . 5 . . . . . . find_garrison 7 | . . . . . . . . . 1 . 1 . . . . . . 1 . 1 . 1 . 1 . 1 . disrupt_area 1 | . . . . . . . . 1 . . . . . . . . . . . . . . . . . . . spike_heat 3 | . . . . . . . . 1 . . . . . . . . . . . . . . . . . 2 . amplify_resonance 10 | . . . . . . . . 3 1 1 . . . . . . . . 1 . . . 2 1 . 1 . formatsys_low 4 | . . . . . . . 2 . . . . . 2 . . . . . . . . . . . . . . formatsys_high 15 | . . . . . . . . 1 1 . 3 1 . 2 . . . 1 . 1 . 1 1 1 . 2 . Relay Couplers Released 108 | . . . . . . 15 . 20 . 10 . 15 . . . . 3 2 20 . . . 21 . 2 . . Machine Destruction 101 | . . . . . . 15 . 17 . 10 . 15 . . . . 3 2 16 . . . 21 . 2 . . Programmers 7 | . . . . . . . . 3 . . . . . . . . . . 4 . . . . . . . . Attached 23 | . . . . . . . 2 3 1 . 2 2 1 . . . . 2 2 1 1 . 4 2 . . . Merged Code Value 71 | . . . . . . . . . . . . 12 . . . . . . 35 . . . 20 . 4 . . Fabnet Peak Effective % . | . . . . . . . . . . . . . . . . . . . . . . . . . . . . Robots Rewired 26 | . . . . . . 2 . 2 . . . . . 18 . . . 1 . . . . 3 . . . . Allies Hacked 1 | . . . . . . . . . . . . . . . . . . . . 1 . . . . . . . Hacks Repelled . | . . . . . . . . . . . . . . . . . . . . . . . . . . . . Allies | -11 -10 -10 -9 -9 -8 -8 -8 -8 -7 -7 -7 -7 -6 -6 -6 -6 -6 -5 -5 -4 -4 -4 -4 -3 -3 -2 -1 -------- Run | Yrd Mat Min Mat Min Mat Gar Mat Gar Fac Gar Fac Gar Fac Ext Cet Arc Hub Fac Gar Fac Was Fac Gar Res Tes Res Acc Total Allies 72 | . . . . 4 . 2 2 3 2 2 3 1 2 26 5 . . 2 1 2 . 1 6 4 1 3 . Largest Group 15 | . . . . 3 3 2 1 2 2 1 3 2 1 14 15 13 10 1 1 2 1 1 3 3 1 1 . Highest-Rated Group 917 | . . . . 40 40 51 26 61 60 16 90 58 26 561 917 778 552 49 26 75 26 49 157 210 26 69 . Highest-Rated Ally 159 | . . . . 31 16 31 26 40 40 16 32 32 26 159 159 159 96 49 26 49 26 49 95 95 26 69 . Total Orders 16 | . . . . . . . 6 . . . . 1 3 . . 2 . 1 . . . . 3 . . . . STAY 5 | . . . . . . . 1 . . . . 1 . . . 1 . 1 . . . . 1 . . . . ROAM 1 | . . . . . . . . . . . . . . . . . . . . . . . 1 . . . . FOLLOW 5 | . . . . . . . 2 . . . . . 1 . . 1 . . . . . . 1 . . . . AID 5 | . . . . . . . 3 . . . . . 2 . . . . . . . . . . . . . . Ally Attacks 438 | . . . . . 22 9 . 29 8 6 7 12 . 102 52 13 91 14 1 3 . . 26 19 . 24 . Total Damage 11488 | . . . . . 242 127 . 692 122 82 210 366 . 2447 1143 283 2430 448 20 118 . . 989 744 . 1025 . Kills 74 | . . . . . . 2 . 5 2 1 2 6 . 13 5 3 17 5 . . . . 5 4 . 4 . Allies Corrupted . | . . . . . . . . . . . . . . . . . . . . . . . . . . . . Allies Melted 1 | . . . . . . . . . . . . . . 1 . . . . . . . . . . . . . Intel | -11 -10 -10 -9 -9 -8 -8 -8 -8 -7 -7 -7 -7 -6 -6 -6 -6 -6 -5 -5 -4 -4 -4 -4 -3 -3 -2 -1 ------- Run | Yrd Mat Min Mat Min Mat Gar Mat Gar Fac Gar Fac Gar Fac Ext Cet Arc Hub Fac Gar Fac Was Fac Gar Res Tes Res Acc Active Infowar (turns) 27334 | 21 1512 281 1251 1957 657 1050 1129 739 880 1037 652 1173 1838 1631 5 58 507 1080 901 472 136 331 1222 1171 1992 1234 2417 Optics 8026 | . . . . . . . . . . . . . . . . . . . . . . . 1212 1171 1992 1234 2417 Sensors 1903 | . . . . . . . . . . . . . . . . . . 953 1 472 136 331 10 . . . . Terrain 420 | . . . . . . . . . . . . . . . . . . . . . . . . . . 204 216 Structural 362 | . . . . . . . . . . . . . . . . . . . . . . . . . . . 362 Seismic 15888 | 21 1512 281 1251 1957 657 1050 1129 739 880 1037 652 831 1201 1150 5 58 507 70 900 . . . . . . . . Jamming 4609 | . . . . . . . . . . . . 948 1555 833 . 57 507 709 . . . . . . . . . Robot Analysis Total 6 | . . . 3 . . . 1 . . . . . . 1 . . . . . 1 . . . . . . . Derelict Logs Recovered 3 | . . 2 . 1 . . . . . . . . . . . . . . . . . . . . . . . Drone Launches . | . . . . . . . . . . . . . . . . . . . . . . . . . . . . Drone Recoveries . | . . . . . . . . . . . . . . . . . . . . . . . . . . . . Exploration | -11 -10 -10 -9 -9 -8 -8 -8 -8 -7 -7 -7 -7 -6 -6 -6 -6 -6 -5 -5 -4 -4 -4 -4 -3 -3 -2 -1 ------------- Run | Yrd Mat Min Mat Min Mat Gar Mat Gar Fac Gar Fac Gar Fac Ext Cet Arc Hub Fac Gar Fac Was Fac Gar Res Tes Res Acc Turns Passed 34715 | 208 1697 343 1722 2015 679 1715 1487 1835 892 1174 652 1430 1985 1671 581 753 507 1329 2205 517 136 335 2033 1171 1992 1234 2417 Spaces Moved 15061 | 86 531 131 807 570 330 791 676 879 492 565 331 696 921 811 260 269 247 561 987 250 69 194 928 597 826 514 742 Core 14 | 2 . . . . . . . . . . . . . . . . . . . . . . . . . . 12 Treads 15047 | 84 531 131 807 570 330 791 676 879 492 565 331 696 921 811 260 269 247 561 987 250 69 194 928 597 826 514 730 Legs . | . . . . . . . . . . . . . . . . . . . . . . . . . . . . Wheels . | . . . . . . . . . . . . . . . . . . . . . . . . . . . . Hover . | . . . . . . . . . . . . . . . . . . . . . . . . . . . . Flight . | . . . . . . . . . . . . . . . . . . . . . . . . . . . . Fastest Speed 50 | 50 160 240 160 160 160 160 160 162 160 160 165 162 160 160 160 160 160 160 160 165 165 165 165 160 160 161 50 Average Speed 169 | 157 229 240 160 234 160 172 164 166 161 164 165 163 161 160 160 160 160 160 161 165 165 165 165 161 168 171 162 Slowest Speed 950 | 160 320 240 160 240 160 240 170 170 162 165 165 165 162 160 160 160 160 160 165 165 165 165 165 165 180 176 950 Overloaded Moves . | . . . . . . . . . . . . . . . . . . . . . . . . . . . . Propulsion Burnouts . | . . . . . . . . . . . . . . . . . . . . . . . . . . . . Robots Hopped . | . . . . . . . . . . . . . . . . . . . . . . . . . . . . Potential Cave-ins 2 | . . . . . . . . . . . . . . . . . . . . . . . . . . . 2 Cave-ins Triggered 1 | . . . . . . . . . . . . . . . . . . . . . . . . . . . 1 Exploration Rate (%) 53 | 3 94 32 74 95 36 82 73 93 15 77 10 82 30 83 74 98 36 15 78 11 71 7 84 22 90 15 12 Regions Visited 27 Branch Regions 7 Pre-discovered Areas 10 | . 5 . 4 1 . . . . . . . . . . . . . . . . . . . . . . . Known Exits Taken 13 | . 1 1 1 1 1 . 1 . 1 . 1 . . . . . . 1 . . . 1 . 1 1 1 . Unknown Exits Taken 6 | 1 . . . . . . . . . . . . 1 1 1 1 1 . . . . . . . . . . Scrap Searched 3 | . . 1 . 2 . . . . . . . . . . . . . . . . . . . . . . . Spaces Dug 343 | . . 3 4 . 1 3 . 2 . 15 2 13 9 . . . 6 20 1 3 . . 22 . 32 84 123 Terrain Destroyed 1111 | . . 3 17 24 12 49 9 19 . 23 3 80 68 . 1 21 15 83 14 7 . . 90 8 70 94 401 Melee 12 | . . . . . . . . . . . . . 9 . . . . . . 3 . . . . . . . Projectile 231 | . . . 9 2 12 . 9 . . 3 3 . . . 1 21 15 38 6 4 . . 8 8 70 12 10 AOE 866 | . . 3 8 22 . 49 . 19 . 20 . 80 59 . . . . 45 6 . . . 82 . . 82 391 Terrain Rammed . | . . . . . . . . . . . . . . . . . . . . . . . . . . . . Walls Destroyed . | . . . . . . . . . . . . . . . . . . . . . . . . . . . . Machines Disabled . | . . . . . . . . . . . . . . . . . . . . . . . . . . . . Actions | -11 -10 -10 -9 -9 -8 -8 -8 -8 -7 -7 -7 -7 -6 -6 -6 -6 -6 -5 -5 -4 -4 -4 -4 -3 -3 -2 -1 --------- Run | Yrd Mat Min Mat Min Mat Gar Mat Gar Fac Gar Fac Gar Fac Ext Cet Arc Hub Fac Gar Fac Was Fac Gar Res Tes Res Acc Total 21673 | 114 813 144 1087 1232 415 998 966 1089 581 702 425 877 1248 1097 409 507 319 850 1358 322 86 209 1232 757 1237 746 1853 Wait 3183 | . 132 . 94 634 21 61 138 19 46 16 44 37 137 88 84 186 46 128 99 18 4 3 77 57 190 114 710 Move 15039 | 85 530 130 806 569 329 790 676 878 492 563 331 695 920 810 259 268 246 561 986 250 68 194 927 596 826 513 741 Hop . | . . . . . . . . . . . . . . . . . . . . . . . . . . . . Pick Up 345 | 1 25 2 28 4 8 15 25 20 10 15 11 18 17 15 11 1 . 16 31 6 . 1 13 16 9 6 21 Fast Attach 163 | 7 9 . 4 1 2 2 1 1 . 1 2 4 3 5 8 5 2 9 19 1 . 3 9 13 18 11 23 Attach 123 | . 3 . 4 1 2 8 2 1 2 9 . 4 5 1 . 1 . 15 6 2 . . 5 5 3 5 39 Detach 41 | . . . . . . . 1 . . . 1 1 . . 1 . . 2 1 . . 1 2 1 2 1 27 Swap 476 | . 11 4 20 6 9 22 37 48 12 17 8 29 44 24 8 3 . 27 23 12 2 1 41 12 15 13 28 Drop 431 | . 8 . 34 5 11 12 31 19 8 8 10 17 19 21 26 3 2 8 52 7 . 3 28 23 31 10 35 Fire 1724 | 21 93 8 89 7 33 83 39 101 10 71 18 72 90 72 12 40 21 78 141 19 10 3 130 30 136 72 225 Melee 27 | . . . . . . 3 11 1 . . . . 9 . . . . . . 3 . . . . . . . Ram . | . . . . . . . . . . . . . . . . . . . . . . . . . . . . Kick . | . . . . . . . . . . . . . . . . . . . . . . . . . . . . Crush 58 | . 2 . 8 5 . . 3 . 1 2 . . 4 3 . . 2 6 . 4 2 . . 4 7 1 4 Escape Stasis 2 | . . . . . . 2 . . . . . . . . . . . . . . . . . . . . . Rewire 61 | . . . . . . . 2 1 . . . . . 58 . . . . . . . . . . . . . Trap . | . . . . . . . . . . . . . . . . . . . . . . . . . . . . Miscellaneous . | . . . . . . . . . . . . . . . . . . . . . . . . . . . . Route ------- -11/Scrapyard -10/Materials (discovered 5 exits: *Mat x3 / *Min / *Sub) -10/Mines (discovered 3 exits: *Mat x2 / Sub) -9/Materials (discovered 4 exits: *Mat x3 / *Min) -9/Mines (discovered 3 exits: *Mat x2 / [*Exi]) -8/Materials (discovered 5 exits: *Fac x3 / *Sto / Gar) -8/Garrison (discovered 3 exits: *Mat x3) -8/Materials (discovered 5 exits: *Fac x3 / *Sto / Gar) -8/Garrison (discovered 3 exits: *Fac x3) -7/Factory (discovered 2 exits: *Fac / Gar) -7/Garrison (discovered 3 exits: *Fac x3) -7/Factory (discovered 2 exits: [*Low] / Gar) -7/Garrison (discovered 3 exits: *Fac x3) -6/Factory (discovered 2 exits: *Fac / *Ext) -6/Extension (discovered 2 exits: *Fac / *Cet) -6/Cetus (discovered 2 exits: *Fac / [*Arc]) -6/Archives (discovered 3 exits: *Fac / *Hub x2) -6/Hub_04(d) -5/Factory -5/Garrison (discovered 3 exits: *Fac x3) -4/Factory -4/Waste -4/Factory -4/Garrison (discovered 3 exits: *Res x3) -3/Research (discovered 2 exits: *Tes x2) -3/Testing -2/Research -1/Access To Epsilon Eridani History --------- Turn | Location | Event 13 | -11/Scrapyard | Discovered new exit (range 14) 209 | -11/Scrapyard | Entered Materials 305 | -10/Materials | Build established: Mutant 577 | -10/Materials | Discovered new exit (range 11) 867 | -10/Materials | Discovered new exit (range 13) 994 | -10/Materials | Discovered new exit (range 13) 1288 | -10/Materials | Discovered new exit (range 16) 1508 | -10/Materials | Identified exit to Mines 1568 | -10/Materials | Learned location of 2 exits from Mines 1599 | -10/Materials | Repaired Lgt. Treads 1618 | -10/Materials | Learned location of Subcaves (-10) 1626 | -10/Materials | Repaired Seismic Detector 1682 | -10/Materials | Loaded intel: 2 recycling unit locations 1684 | -10/Materials | Repaired Assault Rifle 1710 | -10/Materials | Identified exit to Materials 1732 | -10/Materials | Learned location of 3 exits from Materials 1765 | -10/Materials | Learned Storage trap positions 1807 | -10/Materials | Learned location of 1 exit from Recycling 1848 | -10/Materials | Core integrity fell below 50% 1906 | -10/Materials | Entered Mines 1907 | -10/Mines | Identified exit to Subcaves 1917 | -10/Mines | Core integrity fell below 20% 1927 | -10/Mines | Build established: Scavenger-Mutant 2147 | -10/Mines | Learned Materials emergency access door positions 2249 | -10/Mines | Entered Materials 2249 | -9/Materials | Evolved 2 slots: Propulsion x1, Utility x1 2250 | -9/Materials | Identified exit to Mines 2251 | -9/Materials | Identified exit to Materials 3386 | -9/Materials | Learned 2 Storage zone layouts 3491 | -9/Materials | Learned location of 3 exits from Materials 3528 | -9/Materials | Learned location of Zion (-6) 3553 | -9/Materials | Learned location of 3 exits from Materials 3569 | -9/Materials | Learned 4 Recycling zone layouts 3593 | -9/Materials | Learned Storage trap positions 3670 | -9/Materials | Learned Storage terminal intel 3671 | -9/Materials | Central database locked down 3971 | -9/Materials | Entered Mines 4032 | -9/Mines | YI-UF0 nonchalantly dropped a Grenade Launcher on the ground 4147 | -9/Mines | Deemed a non-threat by the Exiles lab entrance 4147 | -9/Mines | Discovered new exit (range 5) 4543 | -9/Mines | Received a Mining Laser from a helpful Derelict 4544 | -9/Mines | Assembled infested the area 5421 | -9/Mines | Received a Rocket Launcher from a helpful Derelict 5716 | -9/Mines | Assisted by bots powering up and referring to "LRC-V3" 5986 | -9/Mines | Entered Materials 5986 | -8/Materials | Accompanied by 3 allies 5986 | -8/Materials | Evolved 2 slots: Propulsion x1, Weapon x1 5987 | -8/Materials | Identified exit to Storage 5988 | -8/Materials | Identified exit to Factory 6284 | -8/Materials | Build established: Scavenger-Gunner 6643 | -8/Materials | Identified exit to Garrison 6665 | -8/Materials | Entered Garrison 6691 | -8/Garrison | Triggered checkpoint 6717 | -8/Garrison | Garrison Relay disabled 6763 | -8/Garrison | Installed Relay Interface Framework 6917 | -8/Garrison | Triggered checkpoint 6996 | -8/Garrison | Discovered new exit (range 8) 7055 | -8/Garrison | Triggered checkpoint 7100 | -8/Garrison | Garrison Relay disabled 7254 | -8/Garrison | Triggered checkpoint 7337 | -8/Garrison | Triggered checkpoint 7392 | -8/Garrison | Expanded RIF knowledge: Patrol Navigation 7410 | -8/Garrison | Garrison Relay disabled 7439 | -8/Garrison | Discovered new exit (range 10) 7580 | -8/Garrison | Triggered checkpoint 7673 | -8/Garrison | Triggered checkpoint 7706 | -8/Garrison | Spotted B-75 Beast 7706 | -8/Garrison | Spotted B-75 Beast 7830 | -8/Garrison | Lost 5 parts (2n3w) 7834 | -8/Garrison | Destroyed 8 combat bots 7881 | -8/Garrison | Triggered checkpoint 7992 | -8/Garrison | Garrison Relay disabled 8011 | -8/Garrison | Triggered checkpoint 8069 | -8/Garrison | Lost 3 parts (1p2n) 8106 | -8/Garrison | Discovered new exit (range 10) 8299 | -8/Garrison | Build established: Bothacker-Gunner 8380 | -8/Garrison | Entered Materials 8612 | -8/Materials | Repaired Lgt. Treads 9093 | -8/Materials | Repaired Seismic Detector 9338 | -8/Materials | Met 7R-MNS 9414 | -8/Materials | Discovered exit to Factory (range 4) 9867 | -8/Materials | Identified exit to Garrison 9867 | -8/Materials | Entered Garrison 9901 | -8/Garrison | Triggered checkpoint 9931 | -8/Garrison | Garrison Relay disabled 10150 | -8/Garrison | Triggered checkpoint 10157 | -8/Garrison | Triggered checkpoint 10233 | -8/Garrison | Build established: Bothacker-Tank 10238 | -8/Garrison | Triggered checkpoint 10329 | -8/Garrison | Triggered checkpoint 10432 | -8/Garrison | Discovered exit to Factory (range 10) 10601 | -8/Garrison | Triggered checkpoint 10607 | -8/Garrison | Core integrity fell below 50% 10920 | -8/Garrison | Discovered exit to Factory (range 10) 10992 | -8/Garrison | Build established: Tank 11059 | -8/Garrison | Triggered checkpoint 11076 | -8/Garrison | Garrison Relay disabled 11163 | -8/Garrison | Spotted B-75 Beast 11193 | -8/Garrison | Destroyed B-75 Beast 11221 | -8/Garrison | Garrison Relay disabled 11344 | -8/Garrison | Build established: Bothacker-Gunner 11501 | -8/Garrison | Triggered checkpoint 11632 | -8/Garrison | Expanded RIF knowledge: Autooverride 11647 | -8/Garrison | Discovered exit to Factory (range 10) 11702 | -8/Garrison | Entered Factory 11702 | -7/Factory | Accompanied by 2 allies 11702 | -7/Factory | Evolved 2 slots: Utility x2 11924 | -7/Factory | Central database locked down 12170 | -7/Factory | Discovered new exit (range 13) 12483 | -7/Factory | Build established: Scavenger-Gunner 12552 | -7/Factory | Identified exit to Garrison 12594 | -7/Factory | Entered Garrison 12641 | -7/Garrison | Triggered checkpoint 12699 | -7/Garrison | Garrison Relay disabled 12797 | -7/Garrison | Expanded RIF knowledge: Hotswap 12908 | -7/Garrison | Lost 9 parts (1p4n2u2w) 13134 | -7/Garrison | Triggered checkpoint 13159 | -7/Garrison | Build established: Gunner 13190 | -7/Garrison | Discovered new exit (range 8) 13414 | -7/Garrison | Discovered new exit (range 9) 13452 | -7/Garrison | Garrison Relay disabled 13528 | -7/Garrison | Triggered checkpoint 13635 | -7/Garrison | Learned Factory security intel 13663 | -7/Garrison | Discovered new exit (range 12) 13667 | -7/Garrison | Triggered checkpoint 13700 | -7/Garrison | Garrison Relay disabled 13768 | -7/Garrison | Entered Factory 13943 | -7/Factory | Repaired Rocket Launcher 14228 | -7/Factory | Discovered new exit (range 6) 14420 | -7/Factory | Identified exit to Garrison 14420 | -7/Factory | Entered Garrison 14420 | -7/Garrison | Accompanied by 2 allies 14461 | -7/Garrison | P-60 Hacker assimilated allied Guardian 4b 14573 | -7/Garrison | Triggered checkpoint 14608 | -7/Garrison | Garrison Relay disabled 14717 | -7/Garrison | Triggered checkpoint 14717 | -7/Garrison | Triggered checkpoint 14868 | -7/Garrison | Triggered checkpoint 14902 | -7/Garrison | Garrison Relay disabled 14908 | -7/Garrison | Build established: Bothacker-Gunner 15030 | -7/Garrison | Discovered new exit (range 14) 15135 | -7/Garrison | Triggered checkpoint 15185 | -7/Garrison | Destroyed 9 combat bots 15249 | -7/Garrison | Triggered checkpoint 15310 | -7/Garrison | Garrison Relay disabled 15467 | -7/Garrison | Discovered new exit (range 8) 15508 | -7/Garrison | Expanded RIF knowledge: Code Merge 15779 | -7/Garrison | Garrison Relay disabled 15835 | -7/Garrison | Discovered new exit (range 10) 15850 | -7/Garrison | Entered Factory 15850 | -6/Factory | Evolved 2 slots: Utility x2 16468 | -6/Factory | Watched by a mysterious "MATRIX" hacker. 16994 | -6/Factory | Spotted B-75 Beast 17076 | -6/Factory | Build established: Gunner 17202 | -6/Factory | Destroyed B-75 Beast 17245 | -6/Factory | Lost 3 parts (1p1n1u) 17406 | -6/Factory | Discovered new exit (range 15) 17656 | -6/Factory | Discovered new exit (range 16) 17835 | -6/Factory | Entered Extension 18050 | -6/Extension | Rescued a captive Derelict 18050 | -6/Extension | Rescued a captive Derelict 18549 | -6/Extension | Build established: Commander-Gunner 18722 | -6/Extension | Spotted B-75 Beast 18737 | -6/Extension | Destroyed B-75 Beast 18747 | -6/Extension | Spotted B-75 Beast 18759 | -6/Extension | Destroyed B-75 Beast 18787 | -6/Extension | Lost 3 allies 18854 | -6/Extension | Rescued A7 19012 | -6/Extension | Rescued a captive Derelict 19013 | -6/Extension | Rescued a captive Derelict 19288 | -6/Extension | Build established: Commander-Tank 19439 | -6/Extension | Discovered new exit (range 10) 19440 | -6/Extension | Discovered new exit (range 6) 19506 | -6/Extension | Entered Cetus 19506 | -6/Cetus | Accompanied by 14 allies (A7) 19511 | -6/Cetus | Acquired a Cetus Manufacturing Module code from A7 19528 | -6/Cetus | Spotted Cetus Guard 19528 | -6/Cetus | Spotted Cetus Guard 19531 | -6/Cetus | Spotted Cetus Guard 19532 | -6/Cetus | Spotted Cetus Guard 19539 | -6/Cetus | Allies destroyed Cetus Guard 19541 | -6/Cetus | Allies destroyed Cetus Guard 19546 | -6/Cetus | Destroyed Cetus Guard 19550 | -6/Cetus | Allies destroyed Cetus Guard 19577 | -6/Cetus | Lost 4 allies 19662 | -6/Cetus | Started Cetus Manufacturing Module 19674 | -6/Cetus | Escorted A7 to Cetus Mainframe 19687 | -6/Cetus | Manufactured an Enhanced Grunt 19712 | -6/Cetus | Manufactured an Enhanced Grunt 19737 | -6/Cetus | Manufactured an Enhanced Grunt 19762 | -6/Cetus | Manufactured an Enhanced Grunt 19787 | -6/Cetus | Manufactured an Enhanced Grunt 19819 | -6/Cetus | Discovered new exit (range 16) 19866 | -6/Cetus | Spotted Cetus Guard 19866 | -6/Cetus | Spotted Cetus Guard 19867 | -6/Cetus | Spotted Cetus Guard 19868 | -6/Cetus | Spotted Cetus Guard 19878 | -6/Cetus | Destroyed Cetus Guard 19878 | -6/Cetus | Destroyed Cetus Guard 19889 | -6/Cetus | Destroyed Cetus Guard 19890 | -6/Cetus | Allies destroyed Cetus Guard 19899 | -6/Cetus | Discovered new exit (range 15) 19911 | -6/Cetus | Met Revision 17 19918 | -6/Cetus | System corruption reached 10% 19996 | -6/Cetus | System corruption reached 30% 20087 | -6/Cetus | Entered Archives 20087 | -6/Archives | Accompanied by 13 allies (A7) 20092 | -6/Archives | Received a hacking code to weaken MAIN.C 20133 | -6/Archives | Discovered new exit (range 16) 20167 | -6/Archives | Discovered new exit (range 16) 20421 | -6/Archives | Build established: Scavenger-Tank 20450 | -6/Archives | Discovered new exit (range 16) 20840 | -6/Archives | Entered Hub_04(d) 20840 | -6/Hub_04(d) | Accompanied by 10 allies 21076 | -6/Hub_04(d) | Garrison activated, responded to threat 21116 | -6/Hub_04(d) | Lost 3 allies 21173 | -6/Hub_04(d) | Discovered new exit (range 5) 21179 | -6/Hub_04(d) | Network Hub disabled 21184 | -6/Hub_04(d) | Core integrity fell below 50% 21326 | -6/Hub_04(d) | Network Hub disabled 21347 | -6/Hub_04(d) | Entered Factory 21347 | -5/Factory | Evolved 2 slots: Power x1, Utility x1 22134 | -5/Factory | Cargo convoy interrupted 22186 | -5/Factory | Destroyed 12 combat bots 22191 | -5/Factory | Lost 3 parts (2p1u) 22545 | -5/Factory | Lost 9 parts (1p2n2u4w) 22547 | -5/Factory | First assault squad dispatched 22676 | -5/Factory | Identified exit to Garrison 22676 | -5/Factory | Entered Garrison 22900 | -5/Garrison | Triggered checkpoint 22981 | -5/Garrison | Garrison Relay disabled 23243 | -5/Garrison | Destroyed 7 combat bots 23286 | -5/Garrison | Triggered checkpoint 23367 | -5/Garrison | Discovered new exit (range 8) 23384 | -5/Garrison | Expanded RIF knowledge: Robot Detection 23471 | -5/Garrison | Triggered checkpoint 23711 | -5/Garrison | Garrison Relay disabled 23810 | -5/Garrison | Triggered checkpoint 23978 | -5/Garrison | Discovered new exit (range 14) 24151 | -5/Garrison | Build established: Bothacker-Tank 24202 | -5/Garrison | Triggered checkpoint 24235 | -5/Garrison | Garrison Relay disabled 24304 | -5/Garrison | Core integrity fell below 50% 24457 | -5/Garrison | Discovered new exit (range 14) 24879 | -5/Garrison | Identified exit to Factory 24881 | -5/Garrison | Entered Factory 24881 | -4/Factory | Evolved 2 slots: Power x1, Utility x1 25118 | -4/Factory | Discovered new exit (range 10) 25133 | -4/Factory | Identified exit to Upper Caves 25327 | -4/Factory | P-70 Sage assimilated allied Sentinel 7a 25398 | -4/Factory | Sucked down chute 25398 | -4/Factory | Entered Waste 25413 | -4/Waste | EMP discharged 25416 | -4/Waste | Spotted C-40 Crusher 25421 | -4/Waste | Spotted C-40 Crusher 25428 | -4/Waste | 1 allies followed down the chute 25446 | -4/Waste | Spotted C-40 Crusher 25466 | -4/Waste | Spotted C-40 Crusher 25473 | -4/Waste | Spotted C-40 Crusher 25513 | -4/Waste | EMP discharged 25513 | -4/Waste | System corruption reached 10% 25513 | -4/Waste | Discovered new exit (range 10) 25532 | -4/Waste | Identified exit to Factory 25534 | -4/Waste | Entered Factory 25676 | -4/Factory | Build established: Bothacker-Skirmisher 25868 | -4/Factory | Identified exit to Garrison 25869 | -4/Factory | Entered Garrison 25869 | -4/Garrison | Accompanied by 1 ally 25892 | -4/Garrison | Triggered checkpoint 26029 | -4/Garrison | Triggered checkpoint 26055 | -4/Garrison | Garrison Relay disabled 26094 | -4/Garrison | Build established: Scavenger-Tank 26585 | -4/Garrison | Triggered checkpoint 26587 | -4/Garrison | Triggered checkpoint 26633 | -4/Garrison | Lost 3 allies 26666 | -4/Garrison | Triggered checkpoint 26672 | -4/Garrison | Lost 5 parts (3p2u) 26696 | -4/Garrison | Destroyed 15 combat bots 26793 | -4/Garrison | Triggered checkpoint 26886 | -4/Garrison | Expanded RIF knowledge: Alert ID Control 27013 | -4/Garrison | Triggered checkpoint 27109 | -4/Garrison | Garrison Relay disabled 27125 | -4/Garrison | Found embedded Infiltrators 27209 | -4/Garrison | Discovered new exit (range 13) 27244 | -4/Garrison | Identified exit to Research 27427 | -4/Garrison | Triggered checkpoint 27459 | -4/Garrison | Garrison Relay disabled 27524 | -4/Garrison | Discovered exit to Research (range 14) 27654 | -4/Garrison | Discovered exit to Research (range 10) 27677 | -4/Garrison | Triggered checkpoint 27720 | -4/Garrison | Garrison Relay disabled 27902 | -4/Garrison | Entered Research 27902 | -3/Research | Accompanied by 1 ally 27902 | -3/Research | Evolved 2 slots: Utility x2 28040 | -3/Research | Build established: Botlord-Tank 28102 | -3/Research | Revision forces began assault on 0b10 28160 | -3/Research | Met up with Revision 17++ 28295 | -3/Research | Identified exit to Testing 28576 | -3/Research | Found Com. Tesla Bomb Launcher 28602 | -3/Research | Research terminal network offline 28615 | -3/Research | Found Unknown Device 28615 | -3/Research | Identified Launcher Loader 28694 | -3/Research | Central database locked down 29008 | -3/Research | Spotted Striker 29073 | -3/Research | Entered Testing 29136 | -3/Testing | Found Prototype Energy Cannon 29136 | -3/Testing | Identified Potential Cannon 29397 | -3/Testing | Found Prototype Device 29397 | -3/Testing | Identified AEGIS Remote Shield 29527 | -3/Testing | Central database locked down 29753 | -3/Testing | Identified exit to Research 30128 | -3/Testing | Found Prototype Hackware 30128 | -3/Testing | Identified Exp. Hacking Suite 30142 | -3/Testing | Spotted Striker 30150 | -3/Testing | Spotted Striker 31035 | -3/Testing | Spotted PG-41QQ0L7P5I 31065 | -3/Testing | Entered Research 31065 | -2/Research | Evolved 2 slots: Propulsion x2 31400 | -2/Research | Found Fusion Bomb Launcher 31900 | -2/Research | Targeted by mysterious "MATRIX" hacker. 32015 | -2/Research | Discovered new exit (range 5) 32024 | -2/Research | Identified exit to Access 32054 | -2/Research | System corruption reached 10% 32065 | -2/Research | First assault squad dispatched 32086 | -2/Research | Lost 4 parts (2p1u1w) 32299 | -2/Research | Entered Access 32299 | -1/Access | Evolved 2 slots: Utility x2 32651 | -1/Access | Build established: Bothacker-Tank 32658 | -1/Access | Found Prototype Processor 32658 | -1/Access | Identified Exp. Signal Interpreter 32666 | -1/Access | Found Unknown Device 32666 | -1/Access | Identified Quantum Capacitor 32902 | -1/Access | System corruption reached 10% 32955 | -1/Access | Build established: Bothacker-Mutant 32991 | -1/Access | Discovered new exit (range 7) 33063 | -1/Access | Destroyed 9 combat bots 33321 | -1/Access | Energy Cycler disabled 33348 | -1/Access | System corruption reached 30% 33413 | -1/Access | Found Quantum Capacitor 33417 | -1/Access | Found Quantum Capacitor 33423 | -1/Access | Found Quantum Capacitor 33549 | -1/Access | First assault squad dispatched 33965 | -1/Access | Build established: Scavenger-Mutant 34673 | -1/Access | Lost 6 parts (2p2u2w) 34677 | -1/Access | Destroyed 10 combat bots 34690 | -1/Access | Crushed by falling debris 34706 | -1/Access | Core integrity fell below 50% 34716 | -1/Access | Core integrity fell below 20% 34716 | *** | Escaped! Last Messages --------------- 34708_ U-05 Engineer lays Concrete. 34709_ Penetrated by Slug. 34709_ Slug penetrates Wall. 34709_ Slug penetrates Reinforced Barrier. 34709_ Rnf. Antimatter Reactor destroyed. 34709_ Penetrated by Slug. 34710_ U-05 Engineer lays Concrete. 34710_ Dropped Quantum Capacitor. 34711_ U-05 Engineer lays Concrete. 34712_ Penetrated by Slug. 34712_ U-05 Engineer builds a Wall. 34712_ Slug penetrates Wall. 34712_ U-05 Engineer builds a Wall. 34712_ Penetrated by Slug. 34714_ Slug penetrates Sealed Heavy Doors. 34715_ Penetrated by Slug. 34715_ K-01 Serf collects debris. 34715_ H-88 Terminator misfires. 34715_ Slug penetrates Wall. 34715_ Penetrated by Slug. Map ----- +----------------------------------------------------+ | ?????????????????????????????????????# #???# | | ?????????????????????????????????????# ??### " | | ?????????????????????????????????????# ??? / "" | | ???????????????????????########+####?# ##???# " | | ???????????????????????# ?# # ???# | | ???????????????????????# ## # ???# | | ???????????????????????# # ###???? | | ???????????????????????# ## ####????? | | ???????????????????????# # "######## | | ???????????????????????# + %! ! | | ???????????????????????# # ! == | | ???????????????????????# # !%!#### ## | | ???????????????????????# ## ## ## #? | | ???????????????????????# ## # ## #? | | ???????????????????????# # # ## #? | | ???????????????????????# ## # #? | | ???????????????????????########### # ## # #? | | ????????????????????????????## ### u# ### #? | | ????????????????????????????? # # %!# # ? | | ????????????????????????????? # # # | | ????????????????????########## % # # ? | | ????????????????????" % # # " | | ????????????????????" = %%! # | | ????????????????????" / =% # | | ????????????????????" !/ # ###### | | ????????????????????" "@*! # #???? | | ????????????????????" "" = # #???? | | ????????????????????" # #???? | | ????????????????????" = # ####???? | | ????????????????????" #?????? | | ????????????????????" == *% #?????? | | ????????????????????########## ;!!! [h* #?????? | | ???????????????????????????# ";;!|! !!%=/ #?????? | | ??????????????############## ! =![ #????? | | ??????????????################## [= ##?? | | ??????????????## = ### [% ### | | ??????????????## ### hh ## | | ??????????????## #####k ### | | ?????????Y????## + hh! ; ### | | ??????????????## # ; ###?# | | ??????????????## #%###### # ????# | | ??????????????#########"#""####+######% ###????# | | ?????????########### # ######## | | ?????????# + # ########## | | ?????????##########" # """"""""" | | ??????????????????#" +% """"T""" | | ??????????????????# # | | ?????############## # | | ################### # | | ####### ###################### | +----------------------------------------------------+ Best States ------------- Heat Dissipation 128 Coolant Potential 65 Energy Generation 75 Energy Capacity 1225 Matter Stores 300 Matter Capacity 300 Sight Range 23 Robot Scan Range 16 Terrain Scan Range 14 Terrain Scan Density 10 Jamming Range 12 Power Amplification 30 Additional Mass Support 25 Armor Coverage 1200 Resistance: TH 15 Evasion (%) 40 Core Analysis 6 Recoil Reduction 6 Offensive Hacking 30 Relay Coupler Types 4 Relay Coupler Value 123 Item Schematics ----------------- Hcp. Storage Unit | -10/Materials | Hacked Hvy. Siege Treads | -4/Factory | Hacked Imp. Remote Force Field | -4/Factory | Hacked Robot Schematics ------------------ None Fabricated ------------ Nothing Repaired ---------- Lgt. Treads | 43% | -10/Materials Seismic Detector | 40% | -10/Materials Assault Rifle | 48% | -10/Materials Lgt. Treads | 42% | -8/Materials Seismic Detector | 15% | -8/Materials Rocket Launcher | 8% | -7/Factory Studied --------- Hvy. Assault Rifle | -9/Materials | Hacked Minigun | -7/Factory | Hacked Remote Datajack | -7/Factory | Hacked Autogun | -7/Factory | Hacked Plasma Cannon | -7/Factory | Hacked KE Penetrator | -3/Research | Hacked Railgun | -3/Research | Hacked Phase Gun | -3/Research | Hacked Quantum Rifle | -3/Research | Hacked Nova Cannon | -3/Testing | Hacked Alien Tech Used ----------------- None Achievements -------------- Zeroed Repercussions Challenges ------------ None Game ------ Seed NovaNeutrinoDriver Manual? 0 Play Time 04:29:51 Cumulative 461.6 hours Start 2026.05.01 @ 14:17:05 End 2026.05.01 @ 19:14:33 Sessions 1 Manual Loads 0 Difficulty Rogue Special Mode None Game No. 270 Rogue 270 Adventurer 0 Explorer 0 Win Type 0 Total 20 Types 10/1/4/2/1/0/0/2/0/0 Lore% 94 Gallery% 82 Achievement% 74 Wizard Run 0 Options --------- Layout 1 ASCII 0 Keyboard 0 Movement Mouse Keybinds 0 Fullscreen 2 Font 32/SmallcapsGlow Map View 50x35 Zoom Use 0% Tactical HUD 1 Map Filters NONE Filters NONE Steam 1 RUN: 8dd4df49-3d5a-4e8c-b675-1300f5f301aa